bitfinex/quotes_SOLUSD_20241226
["timestamp","ask_amount","ask_price","bid_price","bid_amount"]
[1735198536824,17.55772451,193.53,193.46,16.03432451]
[1735198537343,17.55772451,193.53,193.41,0.90070639]
[1735198537344,6.1864,193.56,193.5,16.03432451]
[1735198537642,16.03432451,193.55,193.45,23.776884]
[1735198537838,16.03432451,193.55,193.47,16.03432451]
[1735198539333,6.1864,193.56,193.49,16.03432451]
[1735198539722,17.55772451,193.57,193.49,16.03432451]
[1735198540041,17.55772451,193.57,193.51,16.03432451]
[1735198540342,17.55772451,193.57,193.49,16.03432451]
[1735198541521,17.55772451,193.57,193.47,16.03432451]
[1735198541747,20.0,193.54,193.47,16.03432451]
[1735198542245,16.03432451,193.53,193.43,1.5046]
[1735198542435,20.0,193.54,193.46,16.03432451]
[1735198542835,20.0,193.54,193.48,16.03432451]
[1735198543135,20.0,193.54,193.46,16.03432451]
[1735198543827,20.0,193.52,193.46,16.03432451]
[1735198545350,16.03432451,193.55,193.46,16.03432451]
[1735198546168,10.26558631,193.55,193.47,10.26558631]
[1735198546951,11.78898631,193.57,193.49,10.26558631]
[1735198547126,1.5234,193.57,193.49,10.26558631]
[1735198547454,20.0,193.55,193.49,10.26558631]
[1735198547967,1.5234,193.57,193.46,0.7751565]
[1735198548133,1.5234,193.57,193.48,10.26558631]
[1735198549153,10.26558631,193.54,193.43,2.27978565]
[1735198549454,10.26558631,193.53,193.45,10.26558631]
[1735198549632,10.26558631,193.55,193.45,10.26558631]
[1735198549826,20.0,193.52,193.47,10.26558631]
[1735198550035,1.5234,193.57,193.49,10.26558631]
[1735198550230,20.0,193.54,193.49,16.03645478]
[1735198551346,21.5234,193.57,193.49,16.03645478]
[1735198551536,20.0,193.55,193.49,16.03645478]
[1735198553845,20.0,193.53,193.49,16.03645478]
[1735198554255,20.0,193.55,193.51,16.03645478]
[1735198554585,21.5234,193.57,193.51,16.03645478]
[1735198554741,21.5234,193.57,193.45,23.776884]
[1735198555056,21.5234,193.57,193.49,16.03645478]
[1735198555525,16.03645478,193.56,193.45,23.776884]
[1735198555730,20.0,193.53,193.48,16.03645478]
[1735198555955,20.0,193.53,193.46,16.03645478]
[1735198557744,20.0,193.53,193.48,16.03645478]
[1735198557946,16.03645478,193.56,193.48,16.03645478]
[1735198558562,1.5234,193.57,193.43,1.5046]
[1735198558563,16.03645478,193.54,193.46,16.03645478]
[1735198558938,2.87257814,193.58,193.52,16.03645478]
[1735198559137,20.0,193.59,193.52,16.03645478]
[1735198559337,16.03645478,193.58,193.52,16.03645478]
[1735198559551,16.03645478,193.58,193.5,16.03645478]
[1735198559738,16.03645478,193.56,193.48,16.03645478]
[1735198561340,16.03645478,193.54,193.46,16.03645478]
[1735198562058,16.03645478,193.54,193.48,16.03645478]
[1735198562453,16.03645478,193.54,193.46,16.03645478]
[1735198562662,16.03645478,193.54,193.48,16.03645478]
[1735198563042,23.66225478,193.56,193.48,16.03645478]
[1735198563364,26.25014124,193.56,193.48,16.03645478]
[1735198565458,10.21368646,193.56,193.49,16.03645478]
[1735198566465,16.03645478,193.55,193.47,16.03645478]
[1735198568961,16.03645478,193.55,193.49,16.03645478]
[1735198569160,20.0,193.52,193.47,16.03645478]
[1735198569547,10.21368646,193.56,193.49,16.03645478]
[1735198569771,10.21368646,193.56,193.51,16.03645478]
[1735198570546,16.03645478,193.59,193.51,16.03645478]
[1735198570867,20.0,193.56,193.51,16.03645478]
[1735198571981,6.6595,193.6,193.52,16.03645478]
[1735198572144,22.69595478,193.6,193.53,16.03645478]
[1735198572346,22.69595478,193.6,193.52,16.03645478]
[1735198573771,20.0,193.57,193.52,16.03645478]
[1735198574146,1.6002,193.61,193.54,16.03645478]
[1735198574444,20.0,193.59,193.54,16.03645478]
[1735198574648,16.03645478,193.6,193.53,16.03645478]
[1735198574970,16.03645478,193.58,193.45,0.77493841]
[1735198575162,16.03645478,193.6,193.53,16.03645478]
[1735198575353,20.0,193.57,193.53,16.03645478]
[1735198575552,17.63665478,193.61,193.54,16.03645478]
[1735198575752,16.03645478,193.6,193.53,16.03645478]
[1735198577155,16.03645478,193.59,193.47,0.77495981]
[1735198577472,16.03645478,193.59,193.52,16.03645478]
[1735198577680,36.03645478,193.6,193.52,16.03645478]
[1735198578363,36.03645478,193.6,193.53,16.03645478]
[1735198579584,20.0,193.6,193.54,16.03645478]
[1735198579868,22.60975478,193.64,193.57,16.03645478]
[1735198580058,20.0,193.61,193.57,16.03645478]
[1735198580251,16.8283101,193.64,193.57,10.2550101]
[1735198580444,6.5733,193.64,193.58,10.2550101]
[1735198580641,6.5733,193.64,193.53,0.77477313]
[1735198580642,7.9585702,193.67,193.6,10.2550101]
[1735198580856,22.49044041,193.69,193.56,0.12549]
[1735198580857,10.2550101,193.65,193.56,0.12549]
[1735198581072,10.2550101,193.64,193.57,10.2550101]
[1735198581244,10.2550101,193.63,193.56,10.2550101]
[1735198581453,10.2550101,193.62,193.54,10.2550101]
[1735198581663,10.2550101,193.6,193.51,1.5413]
[1735198581845,10.2550101,193.58,193.51,10.2550101]
[1735198582042,10.2550101,193.58,193.5,10.2550101]
[1735198582586,10.2550101,193.58,193.51,10.2550101]
[1735198583068,10.2550101,193.59,193.52,10.2550101]
[1735198583371,20.0,193.56,193.52,10.2550101]
[1735198583782,20.0,193.57,193.52,10.2550101]
[1735198584080,20.0,193.57,193.51,10.2550101]
[1735198584081,20.0,193.56,193.51,10.2550101]
[1735198584284,20.0,193.56,193.51,16.03264113]
[1735198584984,20.0,193.56,193.52,16.03264113]
[1735198585277,20.0,193.57,193.52,16.03264113]
[1735198586261,20.0,193.58,193.52,16.03264113]
[1735198586801,20.0,193.56,193.52,16.03264113]
[1735198589271,20.0,193.58,193.52,16.03264113]
[1735198589586,20.0,193.58,193.54,16.03264113]
[1735198589880,16.03264113,193.64,193.56,16.03264113]
[1735198590084,22.66244113,193.65,193.58,16.03264113]
[1735198590991,16.03264113,193.66,193.58,16.03264113]
[1735198591200,20.0,193.63,193.58,16.03264113]
[1735198591491,20.0,193.63,193.6,16.03264113]
[1735198591668,20.0,193.64,193.59,16.15813113]
[1735198591992,20.0,193.63,193.59,16.15813113]
[1735198592485,20.0,193.65,193.61,16.03264113]
[1735198592699,16.03264113,193.68,193.6,16.03264113]
[1735198592982,16.03264113,193.65,193.57,16.03264113]
[1735198593175,16.03264113,193.59,193.48,1.6605]
[1735198593378,16.03264113,193.59,193.51,16.03264113]
[1735198594169,20.0,193.55,193.5,16.03264113]
[1735198595588,20.0,193.55,193.51,16.03264113]
[1735198595891,20.0,193.58,193.53,16.03264113]
[1735198596578,16.03264113,193.61,193.53,16.03264113]
[1735198596778,16.03264113,193.61,193.54,16.03264113]
[1735198596968,16.03264113,193.61,193.53,16.03264113]
[1735198597167,16.03264113,193.6,193.52,16.03264113]
[1735198597791,20.0,193.57,193.52,16.03264113]
[1735198598292,20.0,193.57,193.53,16.03264113]
[1735198598501,20.0,193.57,193.54,16.03264113]
[1735198598797,20.0,193.58,193.54,16.03264113]
[1735198600893,6.6298,193.67,193.57,16.03264113]
[1735198601192,16.03264113,193.66,193.59,16.03264113]
[1735198601369,16.03264113,193.65,193.58,16.03264113]
[1735198601565,6.6298,193.67,193.59,16.03264113]
[1735198601566,16.03264113,193.66,193.59,16.03264113]
[1735198601891,16.03264113,193.67,193.6,16.03264113]
[1735198602598,17.54884113,193.68,193.61,16.03264113]
[1735198602787,16.03264113,193.68,193.61,16.03264113]
[1735198602993,16.03264113,193.7,193.63,16.03264113]
[1735198603798,16.03264113,193.71,193.64,16.03264113]
[1735198604013,22.66244113,193.72,193.65,16.03264113]
[1735198604681,17.60464113,193.73,193.66,16.03264113]
[1735198606000,16.03264113,193.75,193.68,16.03264113]
[1735198607412,20.0,193.72,193.69,16.03264113]
[1735198607615,20.0,193.73,193.69,16.03264113]
[1735198607906,20.0,193.71,193.66,16.03264113]
[1735198608210,36.03264113,193.73,193.65,16.03264113]
[1735198608211,16.03264113,193.72,193.65,16.03264113]
[1735198608394,16.03264113,193.71,193.64,16.03264113]
[1735198609181,6.1548,193.8,193.7,16.03264113]
[1735198609381,22.18744113,193.8,193.72,16.03264113]
[1735198609592,22.18744113,193.8,193.71,16.03264113]
[1735198610407,20.0,193.77,193.71,16.03264113]
[1735198611212,20.0,193.75,193.69,16.03264113]
[1735198611387,20.0,193.73,193.67,16.03264113]
[1735198612617,20.0,193.77,193.71,16.03264113]
[1735198612791,20.0,193.76,193.71,16.03264113]
[1735198612997,20.0,193.75,193.66,23.902374]
[1735198613203,20.0,193.75,193.69,16.03264113]
[1735198613819,20.0,193.73,193.69,16.03264113]
[1735198613983,20.0,193.73,193.68,16.03264113]
[1735198614396,20.0,193.73,193.69,16.03264113]
[1735198614831,36.03264113,193.77,193.69,16.03264113]
[1735198615119,36.03264113,193.77,193.7,16.03264113]
[1735198615304,36.03264113,193.77,193.69,16.03264113]
[1735198615800,6.1548,193.8,193.73,16.03264113]
[1735198616004,6.1548,193.8,193.74,16.03264113]
[1735198616609,12.897,193.85,193.75,16.03264113]
[1735198616610,16.03264113,193.82,193.75,16.03264113]
[1735198616810,22.18744113,193.85,193.78,16.03264113]
[1735198617302,16.03264113,193.84,193.77,16.03264113]
[1735198617524,22.18744113,193.85,193.78,16.03264113]
[1735198618108,6.1548,193.85,193.79,16.03264113]
[1735198618417,17.60464113,193.87,193.79,16.03264113]
[1735198618804,16.03264113,193.86,193.79,16.03264113]
[1735198619010,16.03264113,193.85,193.73,0.77393266]
[1735198619218,16.03264113,193.81,193.74,16.03264113]
[1735198619699,16.03264113,193.82,193.75,16.03264113]
[1735198620303,20.0,193.79,193.75,16.03264113]
[1735198620625,20.0,193.79,193.74,16.03264113]
[1735198621128,20.0,193.8,193.76,16.03264113]
[1735198621320,1.572,193.87,193.71,23.776884]
[1735198621321,16.03264113,193.85,193.78,16.03264113]
[1735198621489,16.03264113,193.85,193.77,16.03264113]
[1735198621685,16.03264113,193.84,193.77,16.03264113]
[1735198622529,20.0,193.81,193.78,16.03264113]
[1735198622700,20.0,193.82,193.78,16.03264113]
[1735198623523,20.0,193.82,193.79,16.03264113]
[1735198623733,20.0,193.84,193.79,16.03264113]
[1735198624110,1.572,193.87,193.8,16.03264113]
[1735198624435,6.5773,193.89,193.83,16.03264113]
[1735198624618,16.03264113,193.9,193.83,16.03264113]
[1735198624819,58.54989501,193.95,193.87,16.03264113]
[1735198624993,74.58253614,193.95,193.88,16.03264113]
[1735198625198,74.58253614,193.95,193.87,16.03264113]
[1735198625412,16.03264113,193.94,193.87,16.03264113]
[1735198625821,17.56554113,193.97,193.9,16.03264113]
[1735198626032,16.03264113,193.96,193.88,16.03264113]
[1735198626233,16.03264113,193.94,193.87,16.03264113]
[1735198626389,16.03264113,193.96,193.88,16.03264113]
[1735198626594,16.03264113,193.96,193.89,16.03264113]
[1735198626794,17.56554113,193.97,193.89,16.03264113]
[1735198627433,20.0,193.94,193.9,16.03264113]
[1735198627923,20.0,193.97,193.9,16.03264113]
[1735198628127,20.0,193.95,193.9,16.03264113]
[1735198628434,16.03264113,193.99,193.92,16.03264113]
[1735198628631,22.60994113,194.0,193.92,16.03264113]
[1735198629934,22.60994113,194.0,193.93,16.03264113]
[1735198630228,20.0,193.97,193.93,16.03264113]
[1735198630394,20.0,193.97,193.92,16.03264113]
[1735198630800,20.0,193.97,193.93,16.03264113]
[1735198631133,20.0,193.97,193.89,0.7733158]
[1735198631334,16.03264113,193.94,193.86,1.629]
[1735198631511,16.03264113,193.94,193.87,16.03264113]
[1735198631712,20.0,193.92,193.88,16.03264113]
[1735198631914,20.0,193.93,193.88,16.03264113]
[1735198632099,16.03264113,193.91,193.82,1.629]
[1735198632295,16.03264113,193.9,193.83,16.03264113]
[1735198632499,16.03264113,193.89,193.83,16.03264113]
[1735198632799,20.0,193.88,193.85,16.03264113]
[1735198633037,16.03264113,193.92,193.85,16.03264113]
[1735198633331,12.8889,193.97,193.81,0.12549]
[1735198633332,20.0,193.89,193.84,16.03264113]
[1735198633532,20.0,193.89,193.81,0.12549]
[1735198633697,20.0,193.89,193.83,16.03264113]
[1735198633899,20.0,193.87,193.82,16.03264113]
[1735198634820,20.0,193.87,193.83,16.03264113]
[1735198635029,20.0,193.94,193.84,16.03264113]
[1735198635234,6.5773,194.0,193.89,16.03264113]
[1735198635415,16.03264113,193.97,193.9,16.03264113]
[1735198635811,16.03264113,193.96,193.89,16.03264113]
[1735198636007,16.03264113,193.95,193.88,16.03264113]
[1735198636430,6.5773,194.0,193.9,16.03264113]
[1735198636630,16.03264113,193.99,193.92,16.03264113]
[1735198637339,16.03264113,193.99,193.91,16.03264113]
[1735198637721,20.0,193.96,193.91,16.03264113]
[1735198639736,20.0,193.96,193.92,16.03264113]
[1735198640406,20.0,193.96,193.91,16.03264113]
[1735198641604,20.0,193.96,193.92,16.03264113]
[1735198641804,22.60994113,194.0,193.92,16.03264113]
[1735198641805,20.0,193.97,193.92,16.03264113]
[1735198642041,20.0,193.95,193.89,16.03264113]
[1735198642335,36.03264113,193.96,193.89,16.03264113]
[1735198642833,36.03264113,193.97,193.89,16.03264113]
[1735198643637,16.03264113,193.95,193.88,16.03264113]
[1735198643932,20.0,193.97,193.87,16.03264113]
[1735198643933,16.03264113,193.94,193.87,16.03264113]
[1735198644726,20.0,193.91,193.87,16.03264113]
[1735198645359,20.0,193.9,193.85,16.03264113]
[1735198645547,20.0,193.9,193.86,16.03264113]
[1735198646549,36.03264113,193.95,193.87,16.03264113]
[1735198646757,36.03264113,193.95,193.88,16.03264113]
[1735198647039,36.03264113,193.95,193.87,16.03264113]
[1735198647424,20.0,193.91,193.86,16.03264113]
[1735198649140,20.0,193.91,193.88,16.03264113]
[1735198649918,20.0,193.93,193.88,16.03264113]
[1735198653262,20.0,193.96,193.91,16.03264113]
[1735198653429,16.03264113,193.99,193.91,16.03264113]
[1735198654735,20.0,193.96,193.91,16.03264113]
[1735198655137,20.0,193.96,193.9,16.03264113]
[1735198655566,20.0,193.95,193.9,16.03264113]
[1735198655960,20.0,193.95,193.91,16.03264113]
[1735198656869,20.0,193.97,193.91,16.03264113]
[1735198657267,20.0,193.96,193.91,16.03264113]
[1735198659558,20.0,193.94,193.87,0.77339245]
[1735198659857,20.0,193.92,193.86,16.03264113]
[1735198662456,20.0,193.88,193.82,16.03264113]
[1735198662844,20.0,193.86,193.8,16.03264113]
[1735198663045,20.0,193.84,193.8,16.03264113]
[1735198663258,20.0,193.84,193.77,16.03264113]
[1735198663461,20.0,193.84,193.79,16.03264113]
[1735198663666,20.0,193.84,193.81,16.03264113]
[1735198663875,22.16334113,193.91,193.83,16.03264113]
[1735198664047,20.0,193.88,193.83,16.03264113]
[1735198664238,20.0,193.87,193.82,16.03264113]
[1735198664642,20.0,193.87,193.81,16.03264113]
[1735198664864,20.0,193.85,193.81,16.03264113]
[1735198665574,20.0,193.85,193.79,16.03264113]
[1735198666641,20.0,193.85,193.81,16.03264113]
[1735198666836,20.0,193.85,193.82,16.03264113]
[1735198667136,20.0,193.88,193.83,16.03264113]
[1735198668186,20.0,193.88,193.82,16.03264113]
[1735198668388,20.0,193.87,193.82,16.03264113]
[1735198671678,16.03264113,193.9,193.82,16.03264113]
[1735198672481,6.1307,193.91,193.84,16.03264113]
[1735198673575,16.03264113,193.92,193.86,16.03264113]
[1735198673781,20.0,193.91,193.86,16.03264113]
[1735198677591,20.0,193.93,193.9,16.03264113]
[1735198677790,1.5542,193.97,193.9,16.03264113]
[1735198678301,1.5542,193.97,193.91,16.03264113]
[1735198679289,16.03264113,193.98,193.91,16.03264113]
[1735198679598,16.03264113,193.99,193.92,16.03264113]
[1735198679771,16.03264113,194.0,193.93,16.03264113]
[1735198680102,6.2793,194.01,193.93,16.03264113]
[1735198680305,16.03264113,193.99,193.92,16.03264113]
[1735198683597,16.03264113,193.99,193.91,16.03264113]
[1735198684599,20.0,193.98,193.93,16.03264113]
[1735198685374,20.0,193.98,193.91,16.03264113]
[1735198686201,20.0,193.98,193.89,6.1614]
[1735198686202,20.0,194.01,193.95,16.03264113]
[1735198686406,20.0,194.03,193.98,16.03264113]
[1735198686606,17.67664113,194.07,193.99,16.03264113]
[1735198686899,17.67664113,194.07,194.0,16.03264113]
[1735198687289,16.03264113,194.04,193.97,16.03264113]
[1735198687483,16.03264113,194.03,193.95,16.03264113]
[1735198687786,14.5259,194.07,193.94,16.03264113]
[1735198687787,20.0,193.99,193.94,16.03264113]
[1735198688594,16.03264113,194.02,193.94,16.03264113]
[1735198688904,20.0,193.99,193.94,16.03264113]
[1735198689709,20.0,193.99,193.95,16.03264113]
[1735198690414,20.0,194.01,193.97,16.03264113]
[1735198692188,20.0,194.01,193.95,16.03264113]
[1735198692508,16.03264113,194.02,193.95,16.03264113]
[1735198692706,20.0,193.99,193.94,16.03264113]
[1735198692931,20.0,193.99,193.95,16.03264113]
[1735198695610,20.0,193.99,193.93,16.03264113]
[1735198699820,20.0,193.99,193.95,16.03264113]
[1735198701917,20.0,193.95,193.85,0.77327965]
[1735198702101,16.03264113,193.92,193.85,16.03264113]
[1735198704323,20.0,193.91,193.87,16.03264113]
[1735198704708,20.0,193.92,193.87,16.03264113]
[1735198712127,20.0,193.92,193.89,16.03264113]
[1735198712631,20.0,193.92,193.88,16.03264113]
[1735198713017,20.0,193.93,193.88,16.03264113]
[1735198713936,20.0,193.94,193.89,16.03264113]
[1735198714250,6.2448,193.97,193.91,16.03264113]
[1735198715713,20.0,193.94,193.91,16.03264113]
[1735198716831,21.5492,193.99,193.93,16.03264113]
[1735198717022,20.0,193.97,193.93,16.03264113]
[1735198717215,20.0,193.97,193.94,16.03264113]
[1735198717735,20.0,193.98,193.94,16.03264113]
[1735198719939,6.2312,194.01,193.96,16.03264113]
[1735198720107,6.2312,194.01,193.96,10.21332905]
[1735198720618,11.75932905,194.04,193.97,10.21332905]
[1735198720935,44.55247717,194.06,194.0,10.21332905]
[1735198721435,42.25501227,194.06,193.99,10.21332905]
[1735198722132,42.25501227,194.06,193.99,15.95362287]
[1735198722133,58.20863514,194.06,193.99,15.95362287]
[1735198722313,42.25501227,194.06,194.0,15.95362287]
[1735198722639,36.02381227,194.06,194.01,15.95362287]
[1735198723014,36.02381227,194.06,194.02,15.95362287]
[1735198723638,20.0,194.03,194.02,15.95362287]
[1735198723935,20.0,194.07,194.02,15.95362287]
[1735198724139,20.0,194.07,194.03,15.95362287]
[1735198724515,6.2312,194.11,194.05,15.95362287]
[1735198724919,1.5638,194.12,194.06,15.95362287]
[1735198725456,17.51742287,194.12,194.05,15.95362287]
[1735198725755,17.51742287,194.12,194.06,15.95362287]
[1735198725756,1.5638,194.12,194.06,15.95362287]
[1735198726246,1.5638,194.12,194.07,15.95362287]
[1735198726963,1.5638,194.12,194.06,15.95362287]
[1735198727258,20.0,194.1,194.06,15.95362287]
[1735198728939,20.0,194.1,194.07,15.95362287]
[1735198729145,20.0,194.11,194.07,15.95362287]
[1735198729649,20.0,194.11,194.01,23.902374]
[1735198729963,20.0,194.11,194.05,15.95362287]
[1735198730262,20.0,194.09,194.05,15.95362287]
[1735198730490,20.0,194.09,194.06,15.95362287]
[1735198730767,20.0,194.1,194.06,15.95362287]
[1735198734861,15.95362287,194.13,194.06,15.95362287]
[1735198735243,0.76997519,194.2,194.11,15.95362287]
[1735198735472,15.95362287,194.19,194.12,15.95362287]
[1735198736449,20.0,194.16,194.11,15.95362287]
[1735198736645,20.0,194.15,194.11,15.95362287]
[1735198738868,20.0,194.15,194.12,15.95362287]
[1735198739277,20.0,194.16,194.12,15.95362287]
[1735198739865,20.0,194.16,194.11,15.95362287]
[1735198740562,35.95362287,194.18,194.11,15.95362287]
[1735198742168,20.0,194.14,194.1,10.19881522]
[1735198742867,20.0,194.14,194.11,10.19881522]
[1735198743069,20.0,194.15,194.11,10.19881522]
[1735198743969,20.0,194.14,194.07,0.77284202]
[1735198744168,10.19881522,194.11,194.04,10.19881522]
[1735198744559,10.19881522,194.11,194.03,11.77981522]
[1735198745072,10.19881522,194.11,194.04,10.19881522]
[1735198745521,10.19881522,194.09,194.02,10.19881522]
[1735198745988,10.19881522,194.06,193.99,10.19881522]
[1735198746469,10.19881522,194.06,193.98,11.76661522]
[1735198748146,15.95383323,194.07,193.99,15.95383323]
[1735198749173,35.95383323,194.02,193.93,7.7]
[1735198749585,35.95383323,194.02,193.95,15.95383323]
[1735198750068,20.0,194.02,193.96,15.95383323]
[1735198752099,20.0,194.02,193.95,15.95383323]
[1735198752792,20.0,194.02,193.96,15.95383323]
[1735198753031,15.95383323,194.01,193.94,15.95383323]
[1735198753177,15.95383323,193.98,193.88,1.607]
[1735198753363,15.95383323,193.97,193.89,15.95383323]
[1735198753890,15.95383323,193.98,193.9,15.95383323]
[1735198754571,20.0,193.98,193.94,15.95383323]
[1735198754985,15.95383323,194.02,193.94,15.95383323]
[1735198755200,20.0,193.99,193.94,15.95383323]
[1735198755859,20.0,194.0,193.96,15.95383323]
[1735198756686,15.95383323,194.03,193.96,15.95383323]
[1735198757303,15.95383323,194.04,193.96,15.95383323]
[1735198757497,20.0,194.02,193.97,15.95383323]
[1735198758000,20.0,194.02,193.98,15.95383323]
[1735198758208,22.14523323,194.07,193.99,15.95383323]
[1735198758702,15.95383323,194.07,194.0,15.95383323]
[1735198759380,15.95383323,194.07,193.96,0.77300243]
[1735198759381,15.95383323,194.09,194.02,15.95383323]
[1735198759582,17.56613323,194.1,194.03,15.95383323]
[1735198759896,15.95383323,194.11,194.04,15.95383323]
[1735198760100,15.95383323,194.11,194.03,15.95383323]
[1735198761201,15.95383323,194.12,194.05,15.95383323]
[1735198761410,15.95383323,194.13,194.06,15.95383323]
[1735198761577,17.56613323,194.15,194.07,15.95383323]
[1735198761782,15.95383323,194.14,194.07,15.95383323]
[1735198762077,15.95383323,194.15,194.08,15.95383323]
[1735198762278,15.95383323,194.15,194.07,15.95383323]
[1735198762998,15.95383323,194.16,194.09,15.95383323]
[1735198763303,22.14523323,194.17,194.1,15.95383323]
[1735198763992,15.95383323,194.18,194.1,15.95383323]
[1735198765413,20.0,194.15,194.1,15.95383323]
[1735198765909,15.95383323,194.13,194.06,2.37960415]
[1735198766207,15.95383323,194.13,194.06,17.56083323]
[1735198766714,15.95383323,194.11,194.03,15.95383323]
[1735198771114,12.8771,194.15,194.01,1.607]
[1735198771115,15.95383323,194.1,194.02,15.95383323]
[1735198771318,15.95383323,194.1,194.03,15.95383323]
[1735198773517,12.8771,194.15,194.04,0.12549]
[1735198773688,15.95383323,194.19,194.11,15.95383323]
[1735198774413,7.9585702,194.21,194.11,17.51003323]
[1735198774621,7.9585702,194.21,194.13,15.95383323]
[1735198774915,23.91240343,194.21,194.13,15.95383323]
[1735198775296,15.95383323,194.21,194.13,15.95383323]
[1735198776816,20.0,194.19,194.15,15.95383323]
[1735198777218,20.0,194.19,194.14,15.95383323]
[1735198777422,15.95383323,194.18,194.11,1.5562]
[1735198777618,20.0,194.19,194.12,15.95383323]
[1735198777922,35.95383323,194.19,194.12,15.95383323]
[1735198783726,20.0,194.2,194.12,15.95383323]
[1735198783920,20.0,194.16,194.12,15.95383323]
[1735198785531,20.0,194.16,194.07,0.77262665]
[1735198785826,20.0,194.16,194.09,15.95383323]
[1735198786229,20.0,194.14,194.07,15.95383323]
[1735198786828,20.0,194.12,194.04,2.41770776]
[1735198787033,15.95383323,194.11,194.04,1.6451]
[1735198788926,15.95383323,194.11,194.04,17.59893323]
[1735198789730,35.95383323,194.12,194.05,15.95383323]
[1735198789941,20.0,194.1,194.06,15.95383323]
[1735198790833,20.0,194.12,194.07,15.95383323]
[1735198792121,20.0,194.13,194.08,15.95383323]
[1735198792934,20.0,194.13,194.09,15.95383323]
[1735198793426,15.95383323,194.16,194.1,15.95383323]
[1735198793818,15.95383323,194.17,194.1,15.95383323]
[1735198794619,20.0,194.14,194.1,15.95383323]
[1735198794853,20.0,194.15,194.1,15.95383323]
[1735198796634,20.0,194.14,194.09,15.95383323]
[1735198798348,20.0,194.14,194.08,15.95383323]
[1735198798717,20.0,194.14,194.09,15.95383323]
[1735198799638,20.0,194.14,194.08,15.95383323]
[1735198800642,20.0,194.14,194.09,15.95383323]
[1735198801242,20.0,194.14,194.05,0.89819018]
[1735198801243,15.95383323,194.15,194.08,15.95383323]
[1735198801427,15.95383323,194.15,194.04,14.5289]
[1735198801428,20.0,194.09,194.04,17.59893323]
[1735198801746,35.95383323,194.09,194.04,1.6451]
[1735198802435,35.95383323,194.09,193.96,8.0785]
[1735198802436,15.95383323,194.05,193.96,8.0785]
[1735198802618,15.95383323,194.05,193.98,15.95383323]
[1735198803440,15.95383323,194.05,193.97,15.95383323]
[1735198804146,15.95383323,194.06,193.98,15.95383323]
[1735198804346,20.0,194.03,193.98,15.95383323]
[1735198804543,15.95383323,194.08,194.0,15.95383323]
[1735198804723,20.0,194.05,194.01,15.95383323]
[1735198805622,15.95383323,194.09,194.02,15.95383323]
[1735198806349,20.0,194.06,194.02,15.95383323]
[1735198808355,20.0,194.06,194.01,15.95383323]
[1735198808844,20.0,194.06,194.01,15.58664272]
[1735198809021,20.0,194.06,194.02,15.95383323]
[1735198810650,20.0,194.06,194.01,15.95383323]
[1735198810854,20.0,194.05,193.99,15.95383323]
[1735198811058,35.95383323,194.06,193.98,15.95383323]
[1735198811257,20.0,194.02,193.98,15.95383323]
[1735198811642,20.0,194.02,193.99,15.95383323]
[1735198811843,20.0,194.04,193.99,15.95383323]
[1735198812637,20.0,194.05,194.01,15.95383323]
[1735198812847,15.95383323,194.08,194.01,15.95383323]
[1735198813032,15.95383323,194.09,194.02,15.95383323]
[1735198813450,15.95383323,194.08,194.01,15.95383323]
[1735198814661,20.0,194.05,194.01,15.95383323]
[1735198818464,20.0,194.05,193.99,15.95383323]
[1735198818836,23.776884,194.05,193.99,15.95383323]
[1735198819044,20.0,194.01,193.96,1.6367]
[1735198820067,20.0,194.01,193.95,15.95383323]
[1735198820596,20.0,194.02,193.95,15.95383323]
[1735198820789,20.0,194.01,193.95,15.95383323]
[1735198820952,20.0,194.01,193.97,15.95383323]
[1735198821364,20.0,194.01,193.98,15.95383323]
[1735198821570,20.0,194.04,193.99,15.95383323]
[1735198821959,22.11903323,194.09,194.01,15.95383323]
[1735198823273,20.0,194.06,194.01,15.95383323]
[1735198824882,20.0,194.06,194.02,15.95383323]
[1735198825262,20.0,194.06,194.01,15.95383323]
[1735198827373,15.95383323,194.11,194.03,15.95383323]
[1735198827578,15.95383323,194.13,194.05,15.95383323]
[1735198828877,15.95383323,194.13,194.06,15.95383323]
[1735198829793,15.95383323,194.13,194.05,15.95383323]
[1735198829985,8.0591,194.17,194.05,15.95383323]
[1735198830288,20.0,194.09,194.05,15.95383323]
[1735198831675,20.0,194.09,194.03,15.95383323]